fUSD/lending_fUSD_20250905
["ID","MTS","AMOUNT","RATE_DAILY","PERIOD"]
[383774303,1757110265136,-656.12,0.00039452,10]
[383774304,1757110265146,-400.0,0.00039452,10]
[383774305,1757110265156,-409.48,0.00039452,10]
[383774306,1757110265166,-400.0,0.00039452,10]
[383774307,1757110265176,-610.42,0.00039452,10]
[383774308,1757110265186,-400.0,0.00039452,10]
[383774309,1757110265196,-400.0,0.00039452,10]
[383774310,1757110265206,-400.0,0.00039452,10]
[383774311,1757110265216,-400.0,0.00039452,10]
[383774312,1757110265226,-400.0,0.00039452,10]
[383774313,1757110265236,-585.76,0.00039452,10]
[383774314,1757110265246,-400.0,0.00039452,10]
[383774315,1757110265256,-400.0,0.00039452,10]
[383774316,1757110265266,-3134.44,0.00039452,5]
[383774317,1757110265276,-420.04266177,0.00039452,10]
[383774318,1757110265285,-400.0,0.00039452,10]
[383774319,1757110265296,-400.0,0.00039452,10]
[383774320,1757110265305,-400.0,0.00039452,10]
[383774321,1757110265319,-400.0,0.00039452,10]
[383774322,1757110265329,-400.0,0.00039452,10]
[383774323,1757110265339,-404.05,0.00039452,10]
[383774324,1757110265349,-478.22,0.00039452,10]
[383774325,1757110265360,-256.7238949,0.00039452,10]
[383774326,1757110265370,-400.0,0.00039452,10]
[383774327,1757110265382,-555.03,0.00039452,10]
[383774328,1757110265392,-522.98,0.00039452,10]
[383774329,1757110265403,-400.0,0.00039452,10]
[383774330,1757110265414,-519.29531146,0.00039452,10]
[383774331,1757110265425,-400.0,0.00039452,10]
[383774332,1757110265436,-491.87942138,0.00039452,10]
[383774333,1757110265447,-617.32,0.00039452,10]
[383774334,1757110265459,-400.0,0.00039452,10]
[383774335,1757110265471,-400.0,0.00039452,10]
[383774336,1757110265481,-400.0,0.00039452,10]
[383774337,1757110265492,-896.9,0.00039452,10]
[383774338,1757110265502,-520.03,0.00039452,10]
[383774339,1757110265514,-558.4,0.00039452,10]
[383774340,1757110265526,-649.24,0.00039452,10]
[383774341,1757110265536,-221.352514,0.00039452,10]
[383774342,1757110265546,-614.37,0.00039452,10]
[383774343,1757110265557,-1000.0,0.00039452,10]
[383774344,1757110265569,-538.02,0.00039452,10]
[383774345,1757110265579,-437.77,0.00039452,10]
[383774346,1757110265590,-556.89,0.00039452,10]
[383774347,1757110265600,-474.27,0.00039452,10]
[383774348,1757110265611,-400.0,0.00039452,10]
[383774349,1757110265622,-439.12,0.00039452,10]
[383774350,1757110265632,-415.35,0.00039452,10]
[383774351,1757110265643,-400.0,0.00039452,10]
[383774352,1757110265655,-815.21,0.00039452,10]
[383774353,1757110265664,-789.73,0.00039452,10]
[383774354,1757110265675,-520.84,0.00039452,10]
[383774355,1757110265685,-400.0,0.00039452,10]
[383774356,1757110265695,-406.06,0.00039452,10]
[383774357,1757110265704,-734.64,0.00039452,10]
[383774358,1757110265715,-400.0,0.00039452,10]
[383774359,1757110265726,-400.0,0.00039452,10]
[383774360,1757110265737,-400.0,0.00039452,10]
[383774361,1757110265746,-400.0,0.00039452,10]
[383774362,1757110265757,-400.0,0.00039452,10]
[383774363,1757110265766,-545.69,0.00039452,10]
[383774364,1757110265778,-3990.88,0.00039452,10]
[383774365,1757110265788,-425.1,0.00039452,10]
[383774366,1757110265800,-715.64,0.00039452,10]
[383774367,1757110265810,-1117.99,0.00039452,10]
[383774368,1757110265821,-400.0,0.00039452,10]
[383774369,1757110265831,-436.28,0.00039452,10]
[383774370,1757110265841,-367.1267965,0.00039452,10]
[383774371,1757110265851,-466.46,0.00039452,10]
[383774372,1757110265861,-420.62,0.00039452,10]
[383774373,1757110265871,-400.0,0.00039452,10]
[383774374,1757110265881,-444.51,0.00039452,10]
[383774375,1757110265891,-283.23,0.00039597,2]
[383774376,1757110265900,-150.0,0.00039725,6]
[383774377,1757110265911,-400.0,0.00039726,10]
[383774378,1757110265921,-418.52802028,0.00039726,10]
[383774379,1757110265931,-400.0,0.00039726,10]
[383774380,1757110265942,-409.54,0.00039726,10]
[383774381,1757110265952,-400.0,0.00039726,10]
[383774382,1757110265963,-400.0,0.00039726,10]
[383774383,1757110265974,-647.03,0.00039726,10]
[383774384,1757110265984,-656.12,0.00039726,10]
[383774385,1757110265995,-400.0,0.00039726,10]
[383774386,1757110266005,-400.0,0.00039726,10]
[383774387,1757110266015,-610.42,0.00039726,10]
[383774388,1757110266024,-400.0,0.00039726,10]
[383774389,1757110266035,-400.0,0.00039726,10]
[383774390,1757110266044,-400.0,0.00039726,10]
[383774391,1757110266054,-400.0,0.00039726,10]
[383774392,1757110266064,-400.0,0.00039726,10]
[383774393,1757110266074,-585.76,0.00039726,10]
[383774394,1757110266086,-500.59439947,0.00039726,10]
[383774395,1757110266097,-400.0,0.00039726,10]
[383774396,1757110266108,-3134.44,0.00039726,5]
[383774397,1757110266121,-219.08354481,0.00039726,10]
[383774398,1757110266131,-400.0,0.00039726,10]
[383774399,1757110266141,-400.0,0.00039726,10]
[383774400,1757110266151,-400.0,0.00039726,10]
[383774401,1757110266162,-400.0,0.00039726,10]
[383774402,1757110266172,-404.05,0.00039726,10]
[383774403,1757110266182,-478.22,0.00039726,10]
[383774404,1757110266192,-400.0,0.00039726,10]
[383774405,1757110266203,-555.03,0.00039726,10]
[383774406,1757110266214,-522.98,0.00039726,10]
[383774407,1757110266223,-400.0,0.00039726,10]
[383774408,1757110266234,-400.0,0.00039726,10]
[383774409,1757110266243,-617.32,0.00039726,10]
[383774410,1757110266253,-400.0,0.00039726,10]
[383774411,1757110266262,-385.64704271,0.00039726,10]
[383774412,1757110266271,-896.9,0.00039726,10]
[383774413,1757110266280,-520.03,0.00039726,10]
[383774414,1757110266290,-558.4,0.00039726,10]
[383774415,1757110266299,-649.24,0.00039726,10]
[383774416,1757110266309,-614.37,0.00039726,10]
[383774417,1757110266321,-1000.0,0.00039726,10]
[383774418,1757110266331,-538.02,0.00039726,10]
[383774419,1757110266340,-437.77,0.00039726,10]
[383774420,1757110266349,-556.89,0.00039726,10]
[383774421,1757110266359,-474.27,0.00039726,10]
[383774422,1757110266370,-400.0,0.00039726,10]
[383774423,1757110266379,-439.12,0.00039726,10]
[383774424,1757110266389,-415.35,0.00039726,10]
[383774425,1757110266400,-400.0,0.00039726,10]
[383774426,1757110266409,-815.21,0.00039726,10]
[383774427,1757110266418,-789.73,0.00039726,10]
[383774428,1757110266427,-520.84,0.00039726,10]
[383774429,1757110266436,-406.06,0.00039726,10]
[383774430,1757110266445,-734.64,0.00039726,10]
[383774431,1757110266455,-400.0,0.00039726,10]
[383774432,1757110266465,-400.0,0.00039726,10]
[383774433,1757110266474,-400.0,0.00039726,10]
[383774434,1757110266483,-400.0,0.00039726,10]
[383774435,1757110266493,-400.0,0.00039726,10]
[383774436,1757110266503,-545.69,0.00039726,10]
[383774437,1757110266514,-3990.88,0.00039726,10]
[383774438,1757110266525,-425.1,0.00039726,10]
[383774439,1757110266534,-715.64,0.00039726,10]
[383774440,1757110266545,-1117.99,0.00039726,10]
[383774441,1757110266554,-400.0,0.00039726,10]
[383774442,1757110266563,-436.28,0.00039726,10]
[383774443,1757110266573,-466.46,0.00039726,10]
[383774444,1757110266582,-420.62,0.00039726,10]
[383774445,1757110266592,-400.0,0.00039726,10]
[383774446,1757110266602,-444.51,0.00039726,10]
[383774447,1757110266612,-400.0,0.0004,10]
[383774448,1757110266621,-456.69131674,0.0004,10]
[383774449,1757110266631,-409.54,0.0004,10]
[383774450,1757110266640,-400.0,0.0004,10]
[383774451,1757110266651,-400.0,0.0004,10]
[383774452,1757110266661,-647.03,0.0004,10]
[383774453,1757110266670,-656.12,0.0004,10]
[383774454,1757110266681,-400.0,0.0004,10]
[383774455,1757110266690,-400.0,0.0004,10]
[383774456,1757110266699,-610.42,0.0004,10]
[383774457,1757110266710,-400.0,0.0004,10]
[383774458,1757110266720,-400.0,0.0004,10]
[383774459,1757110266730,-400.0,0.0004,10]
[383774460,1757110266739,-400.0,0.0004,10]
[383774461,1757110266750,-400.0,0.0004,10]
[383774462,1757110266759,-585.76,0.0004,10]
[383774463,1757110266769,-400.0,0.0004,10]
[383774464,1757110266778,-3134.44,0.0004,5]
[383774465,1757110266788,-400.0,0.0004,10]
[383774466,1757110266797,-462.4,0.0004,10]
[383774467,1757110266807,-400.0,0.0004,10]
[383774468,1757110266817,-400.0,0.0004,10]
[383774469,1757110266826,-404.05,0.0004,10]
[383774470,1757110266836,-478.22,0.0004,10]
[383774471,1757110266845,-400.0,0.0004,10]
[383774472,1757110266855,-555.03,0.0004,10]
[383774473,1757110266865,-522.98,0.0004,10]
[383774474,1757110266874,-400.0,0.0004,10]
[383774475,1757110266884,-293.95222221,0.0004,10]
[383774476,1757110266894,-617.32,0.0004,10]
[383774477,1757110266904,-400.0,0.0004,10]
[383774478,1757110266914,-896.9,0.0004,10]
[383774479,1757110266923,-520.03,0.0004,10]
[383774480,1757110266932,-558.4,0.0004,10]
[383774481,1757110266941,-649.24,0.0004,10]
[383774482,1757110266951,-614.37,0.0004,10]
[383774483,1757110266960,-538.02,0.0004,10]
[383774484,1757110266970,-437.77,0.0004,10]
[383774485,1757110266980,-556.89,0.0004,10]
[383774486,1757110266990,-474.27,0.0004,10]
[383774487,1757110267000,-400.0,0.0004,10]
[383774488,1757110267010,-439.12,0.0004,10]
[383774489,1757110267019,-415.35,0.0004,10]
[383774490,1757110267031,-400.0,0.0004,10]
[383774491,1757110267041,-815.21,0.0004,10]
[383774492,1757110267051,-789.73,0.0004,10]
[383774493,1757110267060,-520.84,0.0004,10]
[383774494,1757110267070,-406.06,0.0004,10]
[383774495,1757110267079,-734.64,0.0004,10]
[383774496,1757110267089,-400.0,0.0004,10]
[383774497,1757110267099,-400.0,0.0004,10]
[383774498,1757110267108,-416.66350938,0.0004,10]
[383774499,1757110267119,-498.17,0.0004,10]
[383774500,1757110267128,-400.0,0.0004,10]
[383774501,1757110267138,-545.69,0.0004,10]
[383774502,1757110267147,-3990.88,0.0004,10]
[383774503,1757110267157,-425.1,0.0004,10]
[383774504,1757110267167,-715.64,0.0004,10]
[383774505,1757110267176,-1117.99,0.0004,10]
[383774506,1757110267185,-400.0,0.0004,10]
[383774507,1757110267195,-436.28,0.0004,10]
[383774508,1757110267204,-466.46,0.0004,10]
[383774509,1757110267213,-420.62,0.0004,10]
[383774510,1757110267223,-400.0,0.0004,10]
[383774511,1757110267232,-444.51,0.0004,10]
[383774512,1757110267241,-599.47,0.0004,30]
[383774513,1757110267251,-1535.8597424,0.00040194,2]
[383774514,1757110267260,-500.0,0.00040272,2]
[383774515,1757110267271,-500.0,0.00040272,10]
[383774516,1757110267283,-400.0,0.00040273,10]
[383774517,1757110267292,-409.54,0.00040273,10]
[383774518,1757110267302,-400.0,0.00040273,10]
[383774519,1757110267313,-400.0,0.00040273,10]
[383774520,1757110267325,-647.03,0.00040273,10]
[383774521,1757110267335,-656.12,0.00040273,10]
[383774522,1757110267347,-400.0,0.00040273,10]
[383774523,1757110267356,-610.42,0.00040273,10]
[383774524,1757110267366,-400.0,0.00040273,10]
[383774525,1757110267376,-400.0,0.00040273,10]
[383774526,1757110267385,-400.0,0.00040273,10]
[383774527,1757110267444,-400.0,0.00040273,10]
[383774528,1757110267454,-400.0,0.00040273,10]
[383774529,1757110267464,-585.76,0.00040273,10]
[383774530,1757110267475,-400.0,0.00040273,10]
[383774531,1757110267487,-3134.44,0.00040273,5]
[383774532,1757110267498,-400.0,0.00040273,10]
[383774533,1757110267510,-539.0783109,0.00040273,10]
[383774534,1757110267521,-400.0,0.00040273,10]
[383774535,1757110267532,-404.05,0.00040273,10]
[383774536,1757110267542,-478.22,0.00040273,10]
[383774537,1757110267553,-400.0,0.00040273,10]
[383774538,1757110267563,-555.03,0.00040273,10]
[383774539,1757110267574,-522.98,0.00040273,10]
[383774540,1757110267584,-400.0,0.00040273,10]
[383774541,1757110267593,-617.32,0.00040273,10]
[383774542,1757110267602,-400.0,0.00040273,10]
[383774543,1757110267611,-896.9,0.00040273,10]
[383774544,1757110267621,-520.03,0.00040273,10]
[383774545,1757110267630,-558.4,0.00040273,10]
[383774546,1757110267639,-649.24,0.00040273,10]
[383774547,1757110267648,-614.37,0.00040273,10]
[383774548,1757110267658,-538.02,0.00040273,10]
[383774549,1757110267667,-437.77,0.00040273,10]
[383774550,1757110267677,-556.89,0.00040273,10]
[383774551,1757110267687,-474.27,0.00040273,10]
[383774552,1757110267696,-400.0,0.00040273,10]
[383774553,1757110267705,-439.12,0.00040273,10]
[383774554,1757110267715,-415.35,0.00040273,10]
[383774555,1757110267725,-400.0,0.00040273,10]
[383774556,1757110267734,-815.21,0.00040273,10]
[383774557,1757110267746,-789.73,0.00040273,10]
[383774558,1757110267756,-520.84,0.00040273,10]
[383774559,1757110267766,-406.06,0.00040273,10]
[383774560,1757110267776,-734.64,0.00040273,10]
[383774561,1757110267786,-400.0,0.00040273,10]
[383774562,1757110267796,-273.58,0.00040273,10]
[383774563,1757110267806,-255.51310886,0.00040273,10]
[383774564,1757110267815,-545.69,0.00040273,10]
[383774565,1757110267825,-3990.88,0.00040273,10]
[383774566,1757110267834,-425.1,0.00040273,10]
[383774567,1757110267844,-715.64,0.00040273,10]
[383774568,1757110267854,-1117.99,0.00040273,10]
[383774569,1757110267864,-400.0,0.00040273,10]
[383774570,1757110267875,-436.28,0.00040273,10]
[383774571,1757110267886,-466.46,0.00040273,10]
[383774572,1757110267896,-420.62,0.00040273,10]
[383774573,1757110267906,-400.0,0.00040273,10]
[383774574,1757110267916,-444.51,0.00040273,10]
[383774575,1757110267927,-623.89,0.000403,14]
[383774576,1757110267937,-183.4,0.00040311,120]
[383774577,1757110267946,-6162.0,0.00040346,2]
[383774578,1757110267956,-4163.0,0.00040346,2]
[383774579,1757110267965,-723.0,0.00040346,2]
[383774580,1757110267975,-21143.0,0.00040346,2]
[383774581,1757110267984,-781.21675436,0.00040378,30]
[383774582,1757110267994,-1000.0,0.000405,2]
[383774583,1757110268005,-400.0,0.00040547,10]
[383774584,1757110268015,-409.54,0.00040547,10]
[383774585,1757110268025,-400.0,0.00040547,10]
[383774586,1757110268035,-363.0111262,0.00040547,10]
[383774587,1757110268045,-647.03,0.00040547,10]
[383774588,1757110268055,-656.12,0.00040547,10]
[383774589,1757110268067,-400.0,0.00040547,10]
[383774590,1757110268077,-610.42,0.00040547,10]
[383774591,1757110268087,-400.0,0.00040547,10]
[383774592,1757110268096,-400.0,0.00040547,10]
[383774593,1757110268105,-400.0,0.00040547,10]
[383774594,1757110268115,-230.81,0.00040547,10]
[383774595,1757110268125,-400.0,0.00040547,10]
[383774596,1757110268134,-585.76,0.00040547,10]
[383774597,1757110268143,-184.73,0.00040547,10]
[383774598,1757110268152,-3134.44,0.00040547,5]
[383774599,1757110268161,-400.0,0.00040547,10]
[383774600,1757110268171,-400.0,0.00040547,10]
[383774601,1757110268182,-404.05,0.00040547,10]
[383774602,1757110268193,-478.22,0.00040547,10]
[383774603,1757110268203,-400.0,0.00040547,10]
[383774604,1757110268214,-555.03,0.00040547,10]
[383774605,1757110268225,-522.98,0.00040547,10]
[383774606,1757110268235,-290.75,0.00040547,10]
[383774607,1757110268244,-617.32,0.00040547,10]
[383774608,1757110268253,-187.4454462,0.00040547,10]
[383774609,1757110268263,-896.9,0.00040547,10]
[383774610,1757110268272,-520.03,0.00040547,10]
[383774611,1757110268281,-558.4,0.00040547,10]
[383774612,1757110268291,-649.24,0.00040547,10]
[383774613,1757110268300,-614.37,0.00040547,10]
[383774614,1757110268311,-538.02,0.00040547,10]
[383774615,1757110268326,-437.77,0.00040547,10]
[383774616,1757110268335,-556.89,0.00040547,10]
[383774617,1757110268346,-474.27,0.00040547,10]
[383774618,1757110268356,-400.0,0.00040547,10]
[383774619,1757110268366,-439.12,0.00040547,10]
[383774620,1757110268375,-415.35,0.00040547,10]
[383774621,1757110268385,-400.0,0.00040547,10]
[383774622,1757110268397,-815.21,0.00040547,10]
[383774623,1757110268407,-789.73,0.00040547,10]
[383774624,1757110268418,-520.84,0.00040547,10]
[383774625,1757110268429,-406.06,0.00040547,10]
[383774626,1757110268440,-734.64,0.00040547,10]
[383774627,1757110268450,-400.0,0.00040547,10]
[383774628,1757110268460,-545.69,0.00040547,10]
[383774629,1757110268469,-3990.88,0.00040547,10]
[383774630,1757110268479,-425.1,0.00040547,10]
[383774631,1757110268489,-715.64,0.00040547,10]
[383774632,1757110268499,-1117.99,0.00040547,10]
[383774633,1757110268510,-400.0,0.00040547,10]
[383774634,1757110268522,-436.28,0.00040547,10]
[383774635,1757110268532,-466.46,0.00040547,10]
[383774636,1757110268542,-420.62,0.00040547,10]
[383774637,1757110268551,-400.0,0.00040547,10]
[383774638,1757110268560,-444.51,0.00040547,10]
[383774639,1757110268569,-276.52,0.00040721,2]
[383774640,1757110268578,-400.0,0.00040821,10]
[383774641,1757110268588,-409.54,0.00040821,10]
[383774642,1757110268598,-400.0,0.00040821,10]
[383774643,1757110268607,-647.03,0.00040821,10]
[383774644,1757110268616,-656.12,0.00040821,10]
[383774645,1757110268626,-235.96894045,0.00040821,10]
[383774646,1757110268646,-610.42,0.00040821,10]
[383774647,1757110268656,-400.0,0.00040821,10]
[383774648,1757110268666,-400.0,0.00040821,10]
[383774649,1757110268676,-400.0,0.00040821,10]
[383774650,1757110268686,-337.22448815,0.00040821,10]
[383774651,1757110268697,-585.76,0.00040821,10]
[383774652,1757110268707,-3134.44,0.00040821,5]
[383774653,1757110268717,-400.0,0.00040821,10]
[383774654,1757110268728,-483.49612788,0.00040821,10]
[383774655,1757110268737,-404.05,0.00040821,10]
[383774656,1757110268749,-478.22,0.00040821,10]
[383774657,1757110268758,-400.0,0.00040821,10]
[383774658,1757110268769,-555.03,0.00040821,10]
[383774659,1757110268783,-522.98,0.00040821,10]
[383774660,1757110268802,-617.32,0.00040821,10]
[383774661,1757110268812,-896.9,0.00040821,10]
[383774662,1757110268822,-520.03,0.00040821,10]
[383774663,1757110268832,-558.4,0.00040821,10]
[383774664,1757110268841,-649.24,0.00040821,10]
[383774665,1757110268851,-614.37,0.00040821,10]
[383774666,1757110268862,-538.02,0.00040821,10]
[383774667,1757110268872,-437.77,0.00040821,10]
[383774668,1757110268883,-556.89,0.00040821,10]
[383774669,1757110268893,-474.27,0.00040821,10]
[383774670,1757110268903,-400.0,0.00040821,10]
[383774671,1757110268912,-439.12,0.00040821,10]
[383774672,1757110268922,-415.35,0.00040821,10]
[383774673,1757110268932,-400.0,0.00040821,10]
[383774674,1757110268942,-815.21,0.00040821,10]
[383774675,1757110268952,-789.73,0.00040821,10]
[383774676,1757110268962,-520.84,0.00040821,10]
[383774677,1757110268972,-406.06,0.00040821,10]
[383774678,1757110268983,-734.64,0.00040821,10]
[383774679,1757110268993,-400.0,0.00040821,10]
[383774680,1757110269003,-545.69,0.00040821,10]
[383774681,1757110269013,-3990.88,0.00040821,10]
[383774682,1757110269023,-425.1,0.00040821,10]
[383774683,1757110269034,-715.64,0.00040821,10]
[383774684,1757110269045,-1117.99,0.00040821,10]
[383774685,1757110269056,-400.0,0.00040821,10]
[383774686,1757110269067,-436.28,0.00040821,10]
[383774687,1757110269079,-466.46,0.00040821,10]
[383774688,1757110269089,-420.62,0.00040821,10]
[383774689,1757110269099,-400.0,0.00040821,10]
[383774690,1757110269109,-2876.0,0.00041023,5]
[383774691,1757110269120,-400.0,0.00041095,120]
[383774692,1757110269130,-409.54,0.00041095,120]
[383774693,1757110269141,-400.0,0.00041095,120]
[383774694,1757110269151,-647.03,0.00041095,120]
[383774695,1757110269165,-656.12,0.00041095,120]
[383774696,1757110269175,-610.42,0.00041095,120]
[383774697,1757110269186,-400.0,0.00041095,120]
[383774698,1757110269196,-400.0,0.00041095,120]
[383774699,1757110269208,-585.76,0.00041095,120]
[383774700,1757110269220,-3134.44,0.00041095,5]
[383774701,1757110269231,-400.0,0.00041095,120]
[383774702,1757110269243,-404.05,0.00041095,120]
[383774703,1757110269260,-478.22,0.00041095,120]
[383774704,1757110269271,-400.0,0.00041095,120]
[383774705,1757110269282,-555.03,0.00041095,120]
[383774706,1757110269293,-522.98,0.00041095,120]
[383774707,1757110269304,-617.32,0.00041095,120]
[383774708,1757110269317,-896.9,0.00041095,120]
[383774709,1757110269328,-520.03,0.00041095,120]
[383774710,1757110269339,-558.4,0.00041095,120]
[383774711,1757110269349,-649.24,0.00041095,120]
[383774712,1757110269360,-614.37,0.00041095,120]
[383774713,1757110269371,-538.02,0.00041095,120]
[383774714,1757110269382,-437.77,0.00041095,120]
[383774715,1757110269394,-556.89,0.00041095,120]
[383774716,1757110269404,-474.27,0.00041095,120]
[383774717,1757110269418,-421.25283999,0.00041095,120]
[383774718,1757110269428,-439.12,0.00041095,120]
[383774719,1757110269440,-415.35,0.00041095,120]
[383774720,1757110269452,-400.0,0.00041095,120]
[383774721,1757110269463,-815.21,0.00041095,120]
[383774722,1757110269473,-789.73,0.00041095,120]
[383774723,1757110269484,-520.84,0.00041095,120]
[383774724,1757110269494,-406.06,0.00041095,120]
[383774725,1757110269505,-734.64,0.00041095,120]
[383774726,1757110269517,-400.0,0.00041095,120]
[383774727,1757110269528,-545.69,0.00041095,120]
[383774728,1757110269538,-3990.88,0.00041095,120]
[383774729,1757110269549,-425.1,0.00041095,120]
[383774730,1757110269560,-715.64,0.00041095,120]
[383774731,1757110269571,-1117.99,0.00041095,120]
[383774732,1757110269581,-400.0,0.00041095,120]
[383774733,1757110269591,-436.28,0.00041095,120]
[383774734,1757110269602,-466.46,0.00041095,120]
[383774735,1757110269613,-420.62,0.00041095,120]
[383774736,1757110269623,-400.0,0.00041095,120]
[383774737,1757110269634,-590.64,0.00041095,30]
[383774738,1757110269645,-746.0,0.00041096,2]
[383774739,1757110269655,-400.0,0.00041099,120]
[383774740,1757110269667,-400.0,0.00041099,120]
[383774741,1757110269678,-408.44235652,0.00041099,120]
[383774742,1757110269691,-400.0,0.00041099,120]
[383774743,1757110269701,-400.0,0.00041099,120]
[383774744,1757110269711,-1200.0,0.000411,2]
[383774745,1757110269723,-218.31,0.000411,30]
[383774746,1757110269735,-391.0,0.0004114,30]
[383774747,1757110269746,-342.6966302,0.00041211,2]
[383774748,1757110269758,-2033.0,0.00041274,2]
[383774749,1757110269769,-1258.0,0.00041274,2]
[383774750,1757110269780,-3381.0,0.00041274,2]
[383774751,1757110269792,-923.0,0.00041274,2]
[383774752,1757110269803,-600.0,0.00041274,2]
[383774753,1757110269814,-1300.0,0.00041274,2]
[383774754,1757110269825,-1577.0,0.00041274,2]
[383774755,1757110269836,-567.0,0.00041274,2]
[383774756,1757110269851,-492.55928102,0.00041369,120]
[383774757,1757110269865,-409.54,0.00041369,120]
[383774758,1757110269879,-197.78659784,0.00041369,120]
[383774759,1757110269892,-647.03,0.00041369,120]
[383774760,1757110269905,-656.12,0.00041369,120]
[383774761,1757110269916,-610.42,0.00041369,120]
[383774762,1757110269927,-400.0,0.00041369,120]
[383774763,1757110269941,-172.75603569,0.00041369,120]
[383774764,1757110269954,-585.76,0.00041369,120]
[383774765,1757110269965,-3134.44,0.00041369,5]
[383774766,1757110269978,-400.0,0.00041369,120]
[383774767,1757110269990,-404.05,0.00041369,120]
[383774768,1757110270004,-478.22,0.00041369,120]
[383774769,1757110270016,-469.24510799,0.00041369,120]
[383774770,1757110270027,-555.03,0.00041369,120]
[383774771,1757110270038,-522.98,0.00041369,120]
[383774772,1757110270050,-617.32,0.00041369,120]
[383774773,1757110270061,-896.9,0.00041369,120]
[383774774,1757110270074,-520.03,0.00041369,120]
[383774775,1757110270087,-558.4,0.00041369,120]
[383774776,1757110270098,-649.24,0.00041369,120]
[383774777,1757110270111,-614.37,0.00041369,120]
[383774778,1757110270124,-538.02,0.00041369,120]
[383774779,1757110270137,-437.77,0.00041369,120]
[383774780,1757110270150,-556.89,0.00041369,120]
[383774781,1757110270163,-474.27,0.00041369,120]
[383774782,1757110270176,-439.12,0.00041369,120]
[383774783,1757110270187,-415.35,0.00041369,120]
[383774784,1757110270199,-373.69687492,0.00041369,120]
[383774785,1757110270210,-815.21,0.00041369,120]
[383774786,1757110270224,-789.73,0.00041369,120]
[383774787,1757110270235,-520.84,0.00041369,120]
[383774788,1757110270247,-406.06,0.00041369,120]
[383774789,1757110270260,-734.64,0.00041369,120]
[383774790,1757110270274,-443.83,0.00041369,120]
[383774791,1757110270286,-545.69,0.00041369,120]
[383774792,1757110270298,-3990.88,0.00041369,120]
[383774793,1757110270312,-425.1,0.00041369,120]
[383774794,1757110270326,-715.64,0.00041369,120]
[383774795,1757110270340,-1117.99,0.00041369,120]
[383774796,1757110270354,-400.0,0.00041369,120]
[383774797,1757110270367,-436.28,0.00041369,120]
[383774798,1757110270380,-466.46,0.00041369,120]
[383774799,1757110270392,-420.62,0.00041369,120]
[383774800,1757110270404,-400.0,0.00041369,120]
[383774801,1757110270415,-746.0,0.0004137,2]
[383774802,1757110270425,-400.0,0.00041373,120]